[Event "XVI Open Internacional Villa de Ibi"]
[Site "Ibi, Spain"]
[Date "2018.09.09"]
[Round "3.5"]
[White "Serarols Mabras, Bernat"]
[Black "Martinez Tormo, Jorge"]
[Result "1-0"]
[TimeControl "15' + 2'' por jugada"]
[WhiteElo "2367"]
[BlackElo "2157"]

1. d4 {[%clk 00:14:52]} d5 {[%clk 00:15:03]} {[%emt 00:00:04]} 2. c4 {[%clk
00:14:51]} {[%emt 00:00:04]} e6 {[%clk 00:15:04]} 3. Nf3 {[%clk 00:14:51]} f5
{[%clk 00:15:05]} 4. e3 {[%clk 00:14:43]} {[%emt 00:00:20]} Nf6 {[%clk
00:15:05]} 5. b3 {[%clk 00:14:41]} c6 {[%clk 00:15:05]} 6. Bd3 {[%clk
00:14:37]} {[%emt 00:00:05]} Bd6 {[%clk 00:15:00]} {[%emt 00:00:08]} 7. O-O
{[%clk 00:14:35]} {[%emt 00:00:04]} O-O {[%clk 00:15:00]} {[%emt 00:00:03]} 8.
Ba3 {[%clk 00:14:35]} Bxa3 {[%clk 00:15:00]} {[%emt 00:00:06]} 9. Nxa3 {[%clk
00:14:34]} {[%emt 00:00:11]} b6 {[%clk 00:14:51]} 10. Ne5 {[%clk 00:13:57]}
{[%emt 00:00:36]} Bb7 {[%clk 00:14:49]} {[%emt 00:00:22]} 11. Rc1 {[%clk
00:13:57]} Nfd7 {[%clk 00:13:53]} {[%emt 00:00:43]} 12. Nf3 {[%clk 00:13:39]}
{[%emt 00:00:27]} a5 {[%clk 00:13:10]} {[%emt 00:00:39]} 13. cxd5 {[%clk
00:11:42]} {[%emt 00:01:57]} exd5 {[%clk 00:12:58]} {[%emt 00:00:16]} 14. Nc2
{[%clk 00:11:31]} {[%emt 00:00:17]} Na6 {[%clk 00:12:42]} {[%emt 00:00:43]} 15.
Be2 {[%clk 00:11:02]} {[%emt 00:00:07]} Nb4 {[%clk 00:12:19]} {[%emt 00:00:18]}
16. a3 {[%clk 00:10:46]} {[%emt 00:00:43]} Na2 {[%clk 00:12:16]} 17. Nce1
{[%clk 00:09:48]} {[%emt 00:01:04]} Nxc1 {[%clk 00:12:10]} 18. Qxc1 {[%clk
00:09:49]} Qf6 {[%clk 00:12:07]} 19. Nd3 {[%clk 00:09:50]} Ba6 {[%clk
00:12:08]} 20. Qd2 {[%clk 00:09:50]} Qd6 {[%clk 00:11:11]} {[%emt 00:00:51]} 21.
Qb2 {[%clk 00:09:45]} {[%emt 00:00:19]} Bxd3 {[%clk 00:10:49]} {[%emt
00:00:15]} 22. Bxd3 {[%clk 00:09:46]} {[%emt 00:00:03]} Rae8 {[%clk 00:10:49]}
23. Rc1 {[%clk 00:09:32]} {[%emt 00:00:28]} h6 {[%clk 00:10:20]} {[%emt
00:00:20]} 24. b4 {[%clk 00:08:44]} {[%emt 00:00:47]} axb4 {[%clk 00:10:17]}
{[%emt 00:00:07]} 25. axb4 {[%clk 00:08:44]} g6 {[%clk 00:09:57]} {[%emt
00:00:38]} 26. Qc3 {[%clk 00:08:40]} Rf6 {[%clk 00:09:49]} {[%emt 00:00:03]} 27.
Ra1 {[%clk 00:08:24]} {[%emt 00:00:17]} f4 {[%clk 00:06:13]} {[%emt 00:03:38]}
28. exf4 {[%clk 00:08:04]} {[%emt 00:00:25]} Rxf4 {[%clk 00:05:56]} {[%emt
00:00:13]} 29. Ra7 {[%clk 00:07:48]} {[%emt 00:00:19]} Re7 {[%clk 00:05:18]}
{[%emt 00:00:58]} 30. h3 {[%clk 00:06:21]} {[%emt 00:01:10]} Rf6 {[%clk
00:04:23]} {[%emt 00:00:59]} 31. Ra8+ {[%clk 00:05:43]} {[%emt 00:00:39]} Rf8
{[%clk 00:04:07]} {[%emt 00:00:20]} 32. Ra7 {[%clk 00:05:38]} {[%emt 00:00:07]}
Kg7 {[%clk 00:04:06]} {[%emt 00:00:04]} 33. b5 {[%clk 00:04:51]} {[%emt
00:00:48]} cxb5 {[%clk 00:03:28]} {[%emt 00:00:38]} 34. Bxb5 {[%clk 00:04:19]}
{[%emt 00:00:34]} Nf6 {[%clk 00:03:28]} {[%emt 00:00:10]} 35. Rxe7+ {[%clk
00:03:13]} {[%emt 00:00:59]} Qxe7 {[%clk 00:03:29]} {[%emt 00:00:03]} 36. Ne5
{[%clk 00:03:10]} {[%emt 00:00:06]} Ne4 {[%clk 00:03:19]} {[%emt 00:00:11]} 37.
Qc6 {[%clk 00:03:10]} {[%emt 00:00:04]} Rf6 {[%clk 00:02:20]} {[%emt 00:00:57]}
38. Qxd5 {[%clk 00:02:58]} {[%emt 00:00:14]} Nxf2 {[%clk 00:02:18]} {[%emt
00:00:26]} 39. Bc4 {[%clk 00:02:50]} {[%emt 00:00:13]} Rf8 {[%clk 00:01:48]}
{[%emt 00:00:07]} 40. Qc6 {[%clk 00:01:53]} {[%emt 00:01:00]} Qf6 {[%clk
00:01:24]} {[%emt 00:00:29]} 41. Qd7+ {[%clk 00:01:31]} {[%emt 00:00:55]} Kh8
{[%clk 00:01:24]} 42. Nf7+ {[%clk 00:01:13]} {[%emt 00:00:08]} Rxf7 {[%clk
00:01:12]} {[%emt 00:00:08]} 43. Bxf7 {[%clk 00:00:59]} {[%emt 00:00:05]} h5
{[%clk 00:00:21]} {[%emt 00:00:56]} 44. Qe8+ {[%clk 00:00:12]} {[%emt
00:00:42]} Kh7 {[%clk 00:00:22]} 45. Qf8 {[%clk 00:00:07]} {[%emt 00:00:16]}
Qg7 {[%clk 00:00:13]} {[%emt 00:00:09]} 46. Qe8 {[%clk 00:00:03]} {[%emt
00:00:06]} Nd3 {[%clk 00:00:10]} 47. Bc4 {[%clk 00:00:03]} {[%emt 00:00:04]}
Qxd4+ {[%clk 00:00:10]} {[%emt 00:00:03]} 48. Kh1 {[%clk 00:00:05]} Qxc4 {[%clk
00:00:11]} 49. Qe7+ {[%clk 00:00:05]} {[%emt 00:00:04]} Kh6 {[%clk 00:00:09]}
{[%emt 00:00:15]} 50. Qf8+ {[%clk 00:00:04]} Kh7 {[%clk 00:00:08]} 51. Qe7+
{[%clk 00:00:05]} Kh6 {[%clk 00:00:09]} 52. Qf8+ {[%clk 00:00:07]} Kg5 {[%clk
00:00:07]} {[%emt 00:00:03]} 53. Qe7+ {[%clk 00:00:08]} Kf4 {[%clk 00:00:04]}
{[%emt 00:00:08]} 54. Qf6+ {[%clk 00:00:09]} Ke3 {[%clk 00:00:04]} 55. Qxb6+
{[%clk 00:00:09]} Kd2 {[%clk 00:00:05]} {[%emt 00:00:03]} 56. Qxg6 {[%clk
00:00:09]} Qf4 {[%clk 00:00:03]} {[%emt 00:00:07]} 57. Qxh5 {[%clk 00:00:03]}
{[%emt 00:00:05]} Qf1+ {[%clk 00:00:04]} 58. Kh2 {[%clk 00:00:04]} {[%emt
00:00:11]} Nf2 {[%clk 00:00:04]} 59. Qd5+ {[%clk 00:00:04]} Nd3 {[%clk
00:00:05]} 60. Qg5+ {[%clk 00:00:05]} Kc2 {[%clk 00:00:06]} 61. h4 {[%clk
00:00:04]} {[%emt 00:00:04]} Nf2 {[%emt 00:00:07]} {Bandera} 1-0

[Event "XVI Open Internacional Villa de Ibi"]
[Site "Ibi, Spain"]
[Date "2018.09.09"]
[Round "3.6"]
[White "Bendayan Claros, Aaron"]
[Black "Diaz Velandia, Jose Manuel"]
[Result "0-1"]
[TimeControl "15' + 2'' por jugada"]
[WhiteElo "2171"]
[BlackElo "2368"]

1. d4 {[%clk 00:15:01]} {[%emt 00:00:15]} f5 {[%clk 00:14:51]} {[%emt
00:00:16]} 2. Bg5 {[%clk 00:14:57]} c6 {[%clk 00:14:45]} 3. e3 {[%clk
00:14:54]} {[%emt 00:00:13]} Qb6 {[%clk 00:14:28]} {[%emt 00:00:11]} 4. b3
{[%clk 00:14:48]} {[%emt 00:00:10]} g6 {[%clk 00:14:12]} {[%emt 00:00:18]} 5.
Bd3 {[%clk 00:14:43]} {[%emt 00:00:05]} Bg7 {[%clk 00:14:03]} {[%emt 00:00:41]}
6. Nd2 {[%clk 00:14:34]} {[%emt 00:00:03]} Nf6 {[%clk 00:13:54]} 7. h4 {[%clk
00:14:15]} {[%emt 00:00:10]} d6 {[%clk 00:13:47]} {[%emt 00:00:40]} 8. h5
{[%clk 00:14:02]} Nxh5 {[%clk 00:13:27]} {[%emt 00:00:08]} 9. Rxh5 {[%clk
00:11:44]} {[%emt 00:02:19]} gxh5 {[%clk 00:13:27]} {[%emt 00:00:03]} 10. Qxh5+
{[%clk 00:11:40]} {[%emt 00:00:06]} Kf8 {[%clk 00:13:26]} {[%emt 00:00:04]} 11.
Bh6 {[%clk 00:11:00]} {[%emt 00:00:40]} Bxh6 {[%clk 00:13:03]} {[%emt
00:00:24]} 12. Qxh6+ {[%clk 00:10:51]} {[%emt 00:00:29]} Ke8 {[%clk 00:13:02]}
{[%emt 00:00:04]} 13. Ngf3 {[%clk 00:10:29]} {[%emt 00:00:07]} Nd7 {[%clk
00:11:03]} {[%emt 00:01:59]} 14. Qh5+ {[%clk 00:06:43]} {[%emt 00:03:47]} Kd8
{[%clk 00:11:04]} {[%emt 00:00:13]} 15. Ng5 {[%clk 00:06:42]} Nf6 {[%clk
00:11:02]} 16. Nf7+ {[%clk 00:06:13]} {[%emt 00:00:47]} Kc7 {[%clk 00:10:58]}
17. Qh6 {[%clk 00:05:38]} {[%emt 00:00:23]} Rg8 {[%clk 00:09:41]} {[%emt
00:01:19]} 18. Nxd6 {[%clk 00:05:23]} {[%emt 00:00:19]} exd6 {[%clk 00:09:42]}
{[%emt 00:00:04]} 19. Qxf6 {[%clk 00:05:21]} {[%emt 00:00:03]} Bd7 {[%clk
00:09:41]} 20. Kf1 {[%clk 00:04:27]} {[%emt 00:00:55]} Raf8 {[%clk 00:09:10]}
{[%emt 00:00:33]} 21. Qh6 {[%clk 00:04:23]} {[%emt 00:00:27]} Qa5 {[%clk
00:07:45]} {[%emt 00:01:06]} 22. Qxd6+ {[%clk 00:02:11]} {[%emt 00:02:14]} Kxd6
{[%clk 00:07:45]} {[%emt 00:00:04]} 23. Nc4+ {[%clk 00:02:11]} {[%emt
00:00:11]} Kc7 {[%clk 00:07:45]} 24. Nxa5 {[%clk 00:02:12]} f4 {[%clk
00:07:39]} {[%emt 00:00:03]} 25. exf4 {[%clk 00:00:20]} {[%emt 00:01:51]} Rxf4
{[%clk 00:07:39]} {[%emt 00:00:21]} 26. Nc4 {[%clk 00:00:18]} Rxd4 {[%clk
00:07:38]} 27. Re1 {[%clk 00:00:13]} {[%emt 00:00:08]} Rg7 {[%clk 00:07:39]} 28.
Re3 {[%clk 00:00:09]} {[%emt 00:00:04]} Rh4 {[%clk 00:06:59]} {[%emt 00:00:33]}
29. f3 {[%clk 00:00:04]} {[%emt 00:00:25]} Rh1+ {[%clk 00:06:47]} {[%emt
00:00:09]} 30. Kf2 {[%clk 00:00:05]} Rh2 {[%clk 00:06:48]} 31. f4 {[%clk
00:00:05]} Rhxg2+ {[%clk 00:05:47]} {[%emt 00:00:53]} 32. Kf3 {[%clk 00:00:03]}
{[%emt 00:00:20]} R2g3+ {[%clk 00:05:29]} {[%emt 00:00:05]} 33. Kf2 {[%clk
00:00:03]} {[%emt 00:00:04]} Rxe3 {[%clk 00:04:44]} {[%emt 00:00:44]} 34. Nxe3
{[%clk 00:00:04]} {[%emt 00:00:38]} h5 {[%clk 00:04:35]} 35. f5 {[%clk
00:00:05]} Kd6 {[%clk 00:04:32]} {[%emt 00:00:04]} 36. Kf3 {[%clk 00:00:06]}
Ke5 {[%clk 00:04:24]} 37. Nc4+ {[%clk 00:00:07]} Kf6 {[%clk 00:03:51]} {[%emt
00:00:22]} 38. Nd6 {[%clk 00:00:08]} {[%emt 00:00:35]} b6 {[%clk 00:03:52]} 39.
a4 {[%clk 00:00:08]} Ke5 {[%clk 00:03:35]} {[%emt 00:00:04]} 40. Nc4+ {[%clk
00:00:09]} Kf6 {[%clk 00:03:36]} 41. Nd6 {[%clk 00:00:10]} c5 {[%clk 00:03:37]}
42. c4 {[%clk 00:00:06]} Bc6+ {[%clk 00:03:37]} {[%emt 00:00:06]} 43. Kf2
{[%clk 00:00:06]} h4 {[%clk 00:03:32]} {[%emt 00:00:03]} 44. Ne4+ {[%clk
00:00:06]} {[%emt 00:00:04]} Bxe4 {[%clk 00:03:33]} 45. Bxe4 {[%clk 00:00:07]}
{[%emt 00:00:03]} h3 {[%clk 00:03:33]} 46. Kf3 {[%emt 00:00:08]} {Bandera} 0-1

[Event "XVI Open Internacional Villa de Ibi"]
[Site "Ibi, Spain"]
[Date "2018.09.09"]
[Round "3.7"]
[White "Chernikov, Vladimir"]
[Black "Camarena Gimenez, Rufino"]
[Result "0-1"]
[TimeControl "15' + 2'' por jugada"]
[WhiteElo "2158"]
[BlackElo "2339"]

1. b3 {[%clk 00:15:02]} {[%emt 00:00:11]} e5 {[%clk 00:15:00]} {[%emt
00:00:03]} 2. Bb2 {[%clk 00:15:03]} d6 {[%clk 00:14:58]} 3. e3 {[%clk
00:15:03]} {[%emt 00:00:04]} Nf6 {[%clk 00:14:58]} {[%emt 00:00:14]} 4. d4
{[%clk 00:14:59]} Nbd7 {[%clk 00:14:57]} {[%emt 00:00:03]} 5. c4 {[%clk
00:14:52]} g6 {[%clk 00:14:56]} {[%emt 00:00:17]} 6. Nf3 {[%clk 00:14:26]} Bg7
{[%clk 00:14:42]} {[%emt 00:00:31]} 7. dxe5 {[%clk 00:14:01]} Ng4 {[%clk
00:14:39]} {[%emt 00:00:35]} 8. Qd2 {[%clk 00:13:10]} Ngxe5 {[%clk 00:14:23]}
{[%emt 00:01:05]} 9. Nxe5 {[%clk 00:12:46]} Bxe5 {[%clk 00:13:42]} {[%emt
00:01:10]} 10. Nc3 {[%clk 00:12:00]} O-O {[%clk 00:13:29]} {[%emt 00:01:01]} 11.
Be2 {[%emt 00:02:38]} Nc5 12. h4 {[%clk 00:09:52]} a5 {[%clk 00:11:01]} {[%emt
00:02:08]} 13. h5 {[%clk 00:09:15]} a4 {[%clk 00:10:42]} {[%emt 00:01:01]} 14.
b4 {[%clk 00:08:53]} a3 {[%clk 00:10:37]} {[%emt 00:00:43]} 15. bxc5 {[%clk
00:04:03]} axb2 {[%clk 00:10:34]} {[%emt 00:05:04]} 16. Rd1 {[%clk 00:04:03]}
Ra3 {[%clk 00:09:44]} {[%emt 00:00:35]} 17. Nb1 {[%clk 00:04:04]} Rxa2 {[%clk
00:06:51]} {[%emt 00:03:04]} 18. hxg6 hxg6 19. f4 {[%clk 00:03:25]} Bg7 {[%clk
00:06:35]} {[%emt 00:00:44]} 20. cxd6 {[%clk 00:02:55]} cxd6 {[%clk 00:06:12]}
{[%emt 00:00:25]} 21. Qxd6 {[%clk 00:02:38]} Qxd6 {[%clk 00:05:52]} {[%emt
00:00:44]} 22. Rxd6 {[%clk 00:02:38]} Ra1 {[%clk 00:05:39]} {[%emt 00:00:13]}
23. Kd2 {[%clk 00:02:18]} Bf5 {[%clk 00:04:15]} {[%emt 00:01:49]} 24. Bd3
{[%emt 00:00:10]} Bxd3 {[%clk 00:04:15]} 25. Rxd3 {[%clk 00:02:04]} {[%emt
00:00:09]} Rc8 {[%clk 00:04:06]} {[%emt 00:00:12]} 26. Rb3 {[%clk 00:01:40]}
{[%emt 00:00:25]} Rxc4 {[%clk 00:02:59]} {[%emt 00:01:09]} 27. Rxb7 {[%clk
00:01:41]} {[%emt 00:00:38]} Ra8 {[%clk 00:02:54]} 28. Kd3 {[%clk 00:00:24]}
{[%emt 00:00:50]} Rc1 {[%clk 00:02:49]} {[%emt 00:00:15]} 0-1

[Event "XVI Open Internacional Villa de Ibi"]
[Site "Ibi, Spain"]
[Date "2018.09.09"]
[Round "4.1"]
[White "Camarena Gimenez, Rufino"]
[Black "Plaskett, H James"]
[Result "0-1"]
[TimeControl "15' + 2'' por jugada"]
[WhiteElo "2339"]
[BlackElo "2450"]

1. d4 {[%clk 00:15:01]} {[%emt 00:01:26]} Nf6 {[%clk 00:15:03]} 2. c4 {[%clk
00:15:01]} e6 {[%clk 00:15:01]} 3. Nf3 {[%clk 00:15:02]} c5 {[%clk 00:15:02]} 4.
d5 {[%clk 00:15:01]} exd5 {[%clk 00:15:02]} 5. cxd5 {[%clk 00:15:02]} d6 {[%clk
00:15:02]} 6. Nc3 {[%clk 00:15:02]} a6 {[%clk 00:15:02]} 7. a4 {[%clk
00:15:02]} g6 {[%clk 00:14:50]} 8. Bf4 {[%clk 00:14:58]} Qe7 {[%clk 00:14:44]}
9. h3 {[%clk 00:14:16]} {[%emt 00:00:13]} Bg7 {[%clk 00:13:17]} {[%emt
00:01:29]} 10. e3 {[%clk 00:14:11]} {[%emt 00:00:09]} O-O {[%clk 00:13:07]}
{[%emt 00:00:15]} 11. Be2 {[%clk 00:14:07]} {[%emt 00:00:03]} Nbd7 {[%clk
00:12:57]} {[%emt 00:00:08]} 12. O-O {[%clk 00:14:03]} {[%emt 00:00:13]} Rb8
{[%clk 00:12:12]} {[%emt 00:00:44]} 13. Nd2 {[%clk 00:12:50]} {[%emt 00:01:13]}
Ne5 {[%clk 00:11:46]} {[%emt 00:00:32]} 14. a5 {[%clk 00:12:40]} {[%emt
00:00:08]} Nfd7 {[%clk 00:11:25]} {[%emt 00:00:42]} 15. e4 {[%clk 00:12:10]}
{[%emt 00:00:13]} b5 {[%clk 00:09:49]} {[%emt 00:01:38]} 16. axb6 {[%clk
00:12:08]} {[%emt 00:00:13]} Rxb6 {[%clk 00:09:50]} 17. Qc2 {[%clk 00:11:48]}
{[%emt 00:00:14]} f5 {[%clk 00:09:50]} {[%emt 00:00:05]} 18. exf5 {[%clk
00:11:40]} {[%emt 00:00:13]} Rxf5 {[%clk 00:09:50]} 19. Bg3 {[%clk 00:11:29]}
{[%emt 00:00:30]} Rf8 {[%clk 00:09:26]} {[%emt 00:00:13]} 20. Rae1 {[%clk
00:10:59]} {[%emt 00:00:27]} Qd8 {[%clk 00:08:19]} {[%emt 00:01:06]} 21. f4
{[%clk 00:10:30]} {[%emt 00:00:30]} Nf7 {[%clk 00:08:15]} {[%emt 00:00:38]} 22.
Nc4 {[%clk 00:09:56]} {[%emt 00:00:04]} Rb4 {[%clk 00:08:15]} {[%emt 00:00:44]}
23. f5 {[%clk 00:07:52]} {[%emt 00:01:27]} gxf5 {[%clk 00:06:50]} {[%emt
00:01:24]} 24. Nxd6 {[%clk 00:07:35]} {[%emt 00:00:25]} f4 {[%clk 00:06:34]}
{[%emt 00:00:12]} 25. Nxf7 {[%clk 00:06:29]} {[%emt 00:01:18]} Rxf7 {[%clk
00:06:35]} {[%emt 00:00:03]} 26. Bf2 {[%clk 00:06:24]} Qb6 {[%clk 00:05:16]}
{[%emt 00:01:20]} 27. Bh5 {[%clk 00:04:49]} {[%emt 00:01:34]} Rf8 {[%clk
00:05:13]} {[%emt 00:00:22]} 28. Na4 {[%clk 00:04:14]} {[%emt 00:00:22]} Qb5
{[%clk 00:04:25]} {[%emt 00:00:57]} 29. Re4 {[%clk 00:03:13]} {[%emt 00:00:53]}
Rxe4 {[%clk 00:04:11]} {[%emt 00:00:17]} 30. Qxe4 {[%clk 00:01:16]} {[%emt
00:01:59]} Nf6 {[%clk 00:04:12]} 31. Qxf4 {[%clk 00:00:35]} {[%emt 00:00:52]}
Nxh5 {[%clk 00:04:02]} {[%emt 00:00:06]} 32. Qh4 {[%clk 00:00:35]} {[%emt
00:00:03]} Nf4 {[%clk 00:03:49]} {[%emt 00:00:12]} 33. Nxc5 {[%clk 00:00:24]}
{[%emt 00:00:28]} Nxd5 {[%clk 00:03:15]} {[%emt 00:00:21]} 34. Re1 {[%emt
00:00:42]} Qxb2 {[%clk 00:02:44]} 35. Nd3 {[%clk 00:00:13]} {[%emt 00:00:08]}
Qc3 {[%clk 00:02:26]} {[%emt 00:00:18]} 36. Qe4 {[%clk 00:00:07]} {[%emt
00:00:32]} Nf6 {[%clk 00:02:25]} 37. Qf3 {[%clk 00:00:04]} {[%emt 00:00:08]}
Rd8 {[%clk 00:02:16]} 38. Rc1 {[%clk 00:00:04]} Qb3 {[%clk 00:01:57]} {[%emt
00:00:43]} 39. Ne5 {[%clk 00:00:04]} Qxf3 {[%clk 00:01:55]} 40. Nxf3 {[%clk
00:00:05]} Bb7 {[%clk 00:01:48]} {[%emt 00:00:08]} 41. Ne5 {[%clk 00:00:05]}
Ne4 {[%clk 00:01:45]} 42. Rc7 {[%clk 00:00:04]} Bxe5 {[%clk 00:01:41]} 0-1

[Event "XVI Open Internacional Villa de Ibi"]
[Site "Ibi, Spain"]
[Date "2018.09.09"]
[Round "4.2"]
[White "Ibanez Aullana, Ramon"]
[Black "Granero Roca, Antonio"]
[Result "0-1"]
[TimeControl "15' + 2'' por jugada"]
[WhiteElo "2301"]
[BlackElo "2370"]

1. e4 {[%clk 00:15:03]} c5 {[%clk 00:15:00]} {[%emt 00:00:10]} 2. Nf3 {[%clk
00:15:03]} Nc6 {[%clk 00:15:01]} 3. Bb5 {[%clk 00:14:29]} {[%emt 00:00:35]} e6
{[%clk 00:14:53]} {[%emt 00:00:13]} 4. O-O {[%clk 00:14:22]} {[%emt 00:00:07]}
Nge7 {[%clk 00:14:53]} 5. c3 {[%clk 00:13:33]} {[%emt 00:00:52]} a6 {[%clk
00:14:53]} {[%emt 00:00:09]} 6. Ba4 {[%clk 00:13:28]} {[%emt 00:00:05]} b5
{[%clk 00:14:52]} 7. Bc2 {[%clk 00:13:28]} d6 {[%clk 00:14:00]} {[%emt
00:00:53]} 8. d4 {[%clk 00:13:04]} {[%emt 00:00:26]} e5 {[%clk 00:13:39]}
{[%emt 00:00:23]} 9. a4 {[%clk 00:12:33]} {[%emt 00:04:08]} Bb7 {[%clk
00:13:35]} 10. Be3 {[%clk 00:12:15]} Ng6 {[%clk 00:13:26]} 11. axb5 {[%clk
00:11:46]} axb5 {[%clk 00:13:26]} 12. Rxa8 {[%clk 00:11:46]} Qxa8 {[%clk
00:12:43]} 13. Na3 {[%clk 00:11:39]} Ba6 {[%clk 00:12:05]} 14. b4 {[%clk
00:10:04]} {[%emt 00:04:49]} Be7 {[%clk 00:11:34]} 15. d5 {[%clk 00:09:47]} Nb8
{[%clk 00:11:29]} 16. Qa1 {[%clk 00:08:47]} Qb7 {[%clk 00:11:01]} 17. bxc5
{[%clk 00:08:41]} {[%emt 00:00:04]} dxc5 {[%clk 00:10:54]} 18. Rb1 {[%clk
00:08:41]} b4 {[%clk 00:09:35]} {[%emt 00:00:06]} 19. cxb4 {[%clk 00:07:21]}
{[%emt 00:01:21]} cxb4 {[%clk 00:09:36]} {[%emt 00:00:24]} 20. Ba4+ {[%clk
00:07:22]} Nd7 {[%clk 00:09:34]} 21. Nxe5 {[%clk 00:06:22]} {[%emt 00:00:46]}
Ngxe5 {[%clk 00:08:35]} {[%emt 00:01:05]} 22. Qxe5 {[%clk 00:06:22]} Kf8 {[%clk
00:08:13]} {[%emt 00:00:21]} 23. d6 {[%clk 00:04:02]} {[%emt 00:02:23]} Nxe5
{[%clk 00:08:06]} {[%emt 00:00:09]} 0-1

[Event "XVI Open Internacional Villa de Ibi"]
[Site "Ibi, Spain"]
[Date "2018.09.09"]
[Round "4.3"]
[White "Diaz Velandia, Jose Manuel"]
[Black "Sos Andreu, Eric"]
[Result "0-1"]
[TimeControl "15' + 2'' por jugada"]
[WhiteElo "2368"]
[BlackElo "2332"]

1. d4 {[%clk 00:15:01]} {[%emt 00:00:04]} Nf6 {[%clk 00:14:49]} {[%emt
00:00:11]} 2. c4 {[%clk 00:14:52]} {[%emt 00:00:15]} g6 {[%clk 00:14:47]}
{[%emt 00:00:11]} 3. Nc3 {[%clk 00:14:51]} d5 {[%clk 00:14:47]} 4. cxd5 {[%clk
00:14:51]} Nxd5 {[%clk 00:14:46]} {[%emt 00:00:03]} 5. e4 {[%clk 00:14:51]}
{[%emt 00:00:08]} Nxc3 {[%clk 00:14:45]} {[%emt 00:00:04]} 6. bxc3 {[%clk
00:14:51]} Bg7 {[%clk 00:14:45]} 7. Ba3 {[%clk 00:14:23]} {[%emt 00:00:24]} O-O
{[%clk 00:14:33]} {[%emt 00:00:15]} 8. Nf3 {[%clk 00:14:21]} {[%emt 00:00:07]}
b6 {[%clk 00:14:31]} {[%emt 00:00:03]} 9. Qc2 {[%clk 00:12:51]} {[%emt
00:01:29]} c5 {[%clk 00:13:44]} {[%emt 00:00:50]} 10. dxc5 {[%clk 00:12:39]}
{[%emt 00:00:13]} Qc7 {[%clk 00:13:36]} {[%emt 00:00:36]} 11. Bc4 {[%clk
00:11:33]} {[%emt 00:00:45]} Nd7 {[%clk 00:12:20]} {[%emt 00:01:15]} 12. O-O
{[%clk 00:10:56]} {[%emt 00:00:39]} Nxc5 {[%clk 00:12:13]} {[%emt 00:00:18]} 13.
Bd5 {[%clk 00:10:31]} {[%emt 00:00:38]} Ba6 {[%clk 00:11:24]} {[%emt 00:00:31]}
14. Bxc5 {[%clk 00:10:12]} {[%emt 00:00:37]} Qxc5 {[%clk 00:11:24]} 15. Bxa8
{[%clk 00:10:10]} Bxf1 {[%clk 00:11:23]} 16. Rxf1 {[%clk 00:10:07]} Rxa8 {[%clk
00:11:23]} {[%emt 00:00:06]} 17. e5 {[%clk 00:09:52]} {[%emt 00:00:11]} e6
{[%clk 00:11:07]} {[%emt 00:00:18]} 18. Rd1 {[%clk 00:09:49]} {[%emt 00:00:31]}
Rc8 {[%clk 00:11:00]} 19. h3 {[%clk 00:09:32]} {[%emt 00:00:09]} Bxe5 {[%clk
00:10:47]} {[%emt 00:00:08]} 20. Nxe5 {[%clk 00:09:22]} {[%emt 00:00:15]} Qxe5
{[%clk 00:10:47]} {[%emt 00:00:03]} 21. c4 {[%clk 00:09:22]} b5 {[%clk
00:10:26]} {[%emt 00:00:21]} 22. c5 {[%clk 00:09:20]} {[%emt 00:00:41]} Rxc5
{[%clk 00:10:22]} 23. Qb3 {[%clk 00:08:30]} {[%emt 00:00:23]} Kg7 {[%clk
00:10:18]} {[%emt 00:00:05]} 24. Qa3 {[%clk 00:08:24]} {[%emt 00:00:10]} Rc7
{[%clk 00:09:00]} {[%emt 00:01:17]} 25. Qa6 {[%clk 00:08:17]} {[%emt 00:00:23]}
b4 {[%clk 00:08:48]} {[%emt 00:00:03]} 26. Rb1 {[%clk 00:08:12]} {[%emt
00:00:05]} Qc5 {[%clk 00:08:17]} {[%emt 00:00:34]} 27. Rb3 {[%clk 00:07:46]}
{[%emt 00:00:26]} Qc1+ {[%clk 00:08:01]} {[%emt 00:00:20]} 28. Kh2 {[%clk
00:07:34]} {[%emt 00:00:13]} Qf4+ {[%clk 00:07:56]} {[%emt 00:00:12]} 29. Rg3
{[%clk 00:07:27]} {[%emt 00:00:05]} Qxf2 {[%clk 00:07:51]} {[%emt 00:00:07]} 30.
Rf3 {[%clk 00:07:25]} {[%emt 00:00:13]} Qc5 {[%clk 00:07:44]} 31. Qd3 {[%clk
00:07:12]} {[%emt 00:00:12]} Qe5+ {[%clk 00:07:42]} {[%emt 00:00:13]} 32. Rg3
{[%clk 00:07:08]} {[%emt 00:00:08]} Rc3 {[%clk 00:07:40]} 33. Kg1 {[%clk
00:06:43]} {[%emt 00:00:18]} 0-1